Cogmind - Beta 11 @@@ ROGUE MODE // 2022.04.20 @ 21:29:59 Player: leiavoia Result: Heading to fleet! Performance ------------- Evolutions (9) 4500 Regions Visited (25) 5000 Robots Destroyed (498) 2490 Value Destroyed (16243) 16243 Prototype IDs (46) 920 Alien Tech Used (3) 600 Bonus (9478) 9478 TOTAL SCORE: 39231 Bonus ------- High Alert Combat Kills 2872 Follower Combat Kills 786 Entered Garrisons 200 Used RIF Installer 500 Met Data Miner 300 Used Core Reset Matrix 3000 Win 3000 Friendly Fire -1180 Cogmind --------- Core Integrity 1600/1600 Matter 290/300 Energy 306/320 System Corruption 0% Temperature Hot (246) Movement Hovering (43) Location To Fleet Rendezvous Parts ------- > --- POWER (3) -------- Light Antimatter Reactor Light Antimatter Reactor Light Particle Reactor > --- PROPULSION (7) --- Combat Gravmag System Improved Gyrokinetic Inverter Improved Gyrokinetic Inverter Improved Gyrokinetic Inverter Improved Linear Gravjet Combat Antigrav System Combat Linear Gravjet > --- UTILITY (11) ----- Advanced Heat Sink Medium Storage Unit Advanced Weight Redist. System Machine Analyzer Enhanced Optical Array Advanced Signal Interpreter Long-range Terrain Scanner Light Regenerative Plating Light Regenerative Plating Improved Hacking Suite Advanced System Shield > --- WEAPON (4) ------- Enhanced Nova Cannon Longsword +1 Sigix Broadsword > --- INVENTORY (10) --- Quantum Reactor Heavy Armor Plating High-powered Transdimensional Reconstructor Compact HERF Cannon Hardcell Cannon Advanced Micro-nuke Launcher Core Stripper Peak State ------------ > --- POWER ------------ Light Antimatter Reactor Light Antimatter Reactor Light Particle Reactor > --- PROPULSION ------- Combat Gravmag System Improved Gyrokinetic Inverter Improved Gyrokinetic Inverter Improved Linear Gravjet Cooled Antigrav System Combat Antigrav System Combat Linear Gravjet > --- UTILITY ---------- Advanced Heat Sink Medium Storage Unit Machine Analyzer Enhanced Optical Array Advanced Signal Interpreter Long-range Terrain Scanner Light Regenerative Plating Light Regenerative Plating Advanced Thermal Shield Improved Hacking Suite Advanced System Shield > --- WEAPON ----------- Enhanced Nova Cannon Longsword +1 Sigix Broadsword > --- INVENTORY -------- Quantum Reactor Improved Gyrokinetic Inverter High-powered Transdimensional Reconstructor Quantum Rifle Compact HERF Cannon Hardcell Cannon Advanced Micro-nuke Launcher Core Stripper [Rating: 185] Favorites ----------- Power Reinforced Ion Engine Engine Reinforced Ion Engine Power Core Fission Core Reactor Light Antimatter Reactor Propulsion Advanced Treads Treads Advanced Treads Leg Enhanced Flexi-carbon Leg Wheel Compact Wheel Hover Unit Improved Antigrav System Utility Huge Storage Unit Device Improved Heat Sink Storage Huge Storage Unit Processor Advanced Signal Interpreter Hackware Hacking Suite Protection Hardened Medium Armor Plating Weapon Gauss Cannon Energy Gun Advanced Beam Rifle Energy Cannon Heavy Ion Cannon Ballistic Gun Heavy Machine Gun Ballistic Cannon Gauss Cannon Launcher Improved Grenade Launcher Special Weapon Improved Remote Datajack Impact Weapon Maul Slashing Weapon Longsword +1 Special Melee Weapon Improved Datajack Build | -11 -10 -10 -9 -9 -9 -8 -8 -8 -8 -6 -6 -6 -6 -6 -6 -5 -5 -4 -4 -4 -3 -3 -3 -2 -1 ------- Run | Scr Mat Min Mat Min Exi Min Mat Sto Rec Fac Gar Fac Low Low Dat Pro Fac Fac Upp War Pro Res Qua Res Acc Slots Evolved 18 | . . . 2 . . . 2 . . 4 . . . . . . 2 2 . . . 2 . 2 2 Power 2 | . . . . . . . . . . . . . . . . . 1 . . . . . . . 1 Propulsion 5 | . . . . . . . . . . 2 . . . . . . . 1 . . . 1 . 1 . Utility 9 | . . . 2 . . . 2 . . 1 . . . . . . 1 . . . . 1 . 1 1 Weapon 2 | . . . . . . . . . . 1 . . . . . . . 1 . . . . . . . Parts Attached 628 | 3 21 9 53 14 4 5 61 56 18 31 16 29 16 6 3 18 39 77 1 . 15 85 19 16 13 Power 45 | . 3 1 10 . . 1 1 2 1 1 . 1 1 . . 1 1 9 . . 1 6 2 2 1 Engine 21 | . 3 1 9 . . 1 1 2 . . . 1 1 . . . 1 1 . . . . . . . Core 10 | . . . 1 . . . . . 1 1 . . . . . 1 . 5 . . . . 1 . . Reactor 14 | . . . . . . . . . . . . . . . . . . 3 . . 1 6 1 2 1 Propulsion 122 | . 5 1 13 4 . . 8 19 6 5 . 3 1 1 . 1 6 23 . . 1 19 1 4 1 Treads 54 | . 3 1 10 2 . . 2 11 2 5 . 1 . 1 . . 5 7 . . . 4 . . . Leg 7 | . . . . . . . . . . . . . . . . 1 1 5 . . . . . . . Wheel 42 | . 2 . 3 2 . . 6 8 4 . . 2 1 . . . . 11 . . 1 2 . . . Hover 19 | . . . . . . . . . . . . . . . . . . . . . . 13 1 4 1 Flight . | . . . . . . . . . . . . . . . . . . . . . . . . . . Utility 244 | 2 5 1 18 6 . 3 32 15 7 12 9 9 8 . . 5 17 24 1 . 9 38 9 7 7 Device 118 | 2 2 . 7 2 . 1 10 6 2 6 4 2 4 . . 2 9 14 1 . 4 25 6 4 5 Storage 17 | . 2 . 2 1 . . . 1 . 2 . . . . . . 2 1 . . 1 4 . . 1 Processor 11 | . . . . . . . . . . . . 1 3 . . 2 . . . . 1 1 2 1 . Hackware 25 | . . . . . . . 3 1 4 . . 3 . . . . 4 3 . . 1 3 1 2 . Protection 73 | . 1 1 9 3 . 2 19 7 1 4 5 3 1 . . 1 2 6 . . 2 5 . . 1 Artifact . | . . . . . . . . . . . . . . . . . . . . . . . . . . Weapon 217 | 1 8 6 12 4 4 1 20 20 4 13 7 16 6 5 3 11 15 21 . . 4 22 7 3 4 Energy Gun 40 | . . 3 5 2 1 . 2 2 . . 1 2 1 . 1 1 3 2 . . 1 9 3 . 1 Energy Cannon 17 | . 2 1 . 1 2 . 2 . . . 1 1 . . . . 1 2 . . . 1 . 1 2 Ballistic Gun 39 | 1 3 . 1 . . . 5 . 1 3 1 7 1 3 2 4 . 2 . . . 4 1 . . Ballistic Cannon 40 | . . . . . . . 5 10 2 4 2 . . . . 2 2 10 . . . 1 1 . 1 Launcher 38 | . 3 2 3 1 . . 4 5 . 2 2 . 3 2 . 3 3 1 . . 1 2 . 1 . Special Weapon 10 | . . . 1 . . . . . . . . . . . . 1 3 1 . . 2 2 . . . Impact Weapon 2 | . . . 2 . . . . . . . . . . . . . . . . . . . . . . Slashing Weapon 29 | . . . . . 1 1 2 3 1 4 . 4 1 . . . 3 3 . . . 3 2 1 . Piercing Weapon . | . . . . . . . . . . . . . . . . . . . . . . . . . . Special Melee Weapon 2 | . . . . . . . . . . . . 2 . . . . . . . . . . . . . Unidentified Prototypes 17 | . . . 4 1 1 . 1 1 . . . . 1 . . 1 . 1 . . . 3 1 2 . Corrupted Parts 5 | . . . 1 . . . . . . . . . . . . . . 3 . . . 1 . . . System Corruption 28 | . . . 10 . . . . . . . . . . . . . . 17 . . . 1 . . . Parts Lost 139 | . 1 2 6 . . . 4 11 1 3 6 5 3 2 . 4 9 41 . . 7 29 . 4 1 Power 14 | . . . 1 . . . . . . . . . . . . 1 1 8 . . . 3 . . . Propulsion 37 | . . 1 1 . . . . 4 . 1 . . . 1 . . 3 14 . . 4 4 . 3 1 Utility 47 | . 1 . 3 . . . 3 5 1 1 2 4 1 1 . 1 2 10 . . 3 9 . . . Weapon 41 | . . 1 1 . . . 1 2 . 1 4 1 2 . . 2 3 9 . . . 13 . 1 . Highest Loss Streak 14 | . 1 1 2 . . . 1 3 1 2 4 3 3 2 . 2 8 11 . . 5 14 . 3 1 To Critical Strikes 3 | . . . . . . . . . . . . . . . . . . 2 . . . 1 . . . Average Slot Usage (%) 93 | . 100 100 98 94 86 88 98 96 99 99 97 98 93 90 67 90 89 81 . 79 80 80 94 90 95 Engine 6 | . 14 14 10 11 11 11 8 9 5 . . 3 6 6 6 4 3 . . . . . . . . Core 1 | . . . . . . . . . 3 6 6 2 . . . 2 5 3 . 5 5 2 . . . Treads 9 | . 18 7 18 11 . . 4 7 8 18 26 14 . 2 6 4 4 7 . 10 8 10 . . . Wheel 8 | . 6 20 3 6 11 11 12 9 9 7 . 11 19 16 13 13 5 6 . 15 11 . . . . Hover 1 | . . . . . . . . . . . . . . . . . . . . . . 2 28 28 27 Device 12 | . 10 1 16 19 11 12 13 13 15 5 7 8 13 10 6 7 7 9 . 15 14 12 9 8 11 Storage 8 | . 14 14 11 11 11 11 9 9 15 6 6 6 6 6 6 6 5 5 . 5 5 4 4 4 4 Processor 3 | . . . . . . . . . . . . . 12 13 13 16 16 8 . 5 10 9 10 13 12 Hackware 6 | . . . . . . . 4 5 21 26 9 11 6 6 6 6 10 12 . 5 5 8 6 5 8 Protection 13 | . 3 12 15 13 22 20 27 23 1 6 20 16 5 6 6 5 3 3 . 10 3 1 9 8 8 Energy Gun 5 | . . 14 18 17 10 11 . 2 . . 1 2 5 6 . 6 . 2 . 1 4 4 4 . . Energy Cannon 1 | . 13 2 1 4 10 11 . . . . 3 1 . . . . . 1 . . . . . 2 2 Ballistic Gun 2 | . 14 . . . . . 3 . . . 3 8 10 11 1 8 . 1 . . . 2 . . . Ballistic Cannon 4 | . . . . . . . 6 13 11 13 5 . . . . 2 10 6 . . . 3 . . . Launcher 2 | . . 10 . . . . 7 2 5 . 2 . . . . 1 . . . . 2 . . 1 . Slashing Weapon 1 | . . . . . . . . . . 4 . 4 2 1 . . . 2 . 5 2 1 7 8 8 Naked Turns . | . . . . . . . . . . . . . . . . . . . . . . . . . . Heaviest Build 152 | 14 33 35 102 108 107 128 134 139 110 127 138 128 119 115 113 125 134 150 112 112 130 152 64 73 88 Greatest Support 180 | 20 40 24 43 40 28 28 40 45 44 94 94 94 60 60 44 44 122 137 32 48 48 180 75 94 103 Greatest Overweight (x) 43 | . 2 1 9 5 3 4 12 43 10 7 1 3 3 2 2 2 4 12 3 3 7 8 . . . Average Overweight (x) 2 | . . 1 2 2 3 3 4 8 4 2 1 2 1 1 2 2 2 2 3 2 3 . . . . Largest Inventory Capacity 30 | 8 15 15 25 25 25 25 25 25 25 25 25 25 25 25 25 25 30 25 25 25 25 25 10 10 10 Average Capacity 23 | 8 13 15 20 25 25 25 25 25 25 25 25 25 25 25 25 25 25 25 25 25 25 24 10 10 10 Most Carried 25 | 8 15 15 25 25 25 25 25 25 25 25 25 25 25 25 25 25 25 25 23 24 25 25 10 10 10 Average Carried 22 | 6 12 14 19 24 24 24 24 24 24 24 22 24 24 24 25 24 24 19 23 23 23 23 9 9 8 Final Capacity 25 | 8 15 15 25 25 25 25 25 25 25 25 25 25 25 25 25 25 25 25 25 25 25 10 10 10 10 Final Carried 25 | 8 15 15 25 25 25 25 25 25 25 25 25 25 25 25 25 25 18 24 24 24 23 10 10 10 9 Class Distribution -------------------- 35% | Mutant 27% | Scavenger-Mutant 14% | Hacker-Mutant 5% | Scavenger-Assassin 4% | Scavenger-Skirmisher 3% | Scavenger-Tank Dominant Class ---------------- Mutant | -10/Materials Mutant | -10/Mines Scavenger-Mutant | -9/Materials Mutant | -9/Mines Mutant | -9/Exiles Mutant | -8/Mines Mutant | -8/Materials Mutant | -8/Storage Hacker-Mutant | -8/Recycling Hacker-Mutant | -6/Factory Hacker-Mutant | -6/Garrison Bothacker-Mutant | -6/Factory Scavenger-Skirmisher | -6/Lower Caves Scavenger-Tank | -6/Lower Caves Scavenger-Mutant | -6/Data Miner Scavenger-Mutant | -5/Proximity Caves Derelict-Mutant | -5/Factory Scavenger-Mutant | -4/Factory Scavenger-Mutant | -4/Upper Caves Scavenger-Mutant | -4/Warlord Scavenger-Assassin | -3/Proximity Caves Scavenger-Assassin | -3/Research Scavenger-Mutant | -3/Quarantine Scavenger-Mutant | -2/Research Hacker-Mutant | -1/Access Resources | -11 -10 -10 -9 -9 -9 -8 -8 -8 -8 -6 -6 -6 -6 -6 -6 -5 -5 -4 -4 -4 -3 -3 -3 -2 -1 ----------- Run | Scr Mat Min Mat Min Exi Min Mat Sto Rec Fac Gar Fac Low Low Dat Pro Fac Fac Upp War Pro Res Qua Res Acc Matter Collected 16115 | 263 390 467 941 294 . 159 2188 1592 785 908 359 569 423 145 . 550 1380 1712 . . 695 1576 278 276 165 Remotely 4957 | . . . . . . . 1156 881 593 380 359 . . . . . 456 414 . . . 718 . . . Salvage Created 17638 | 89 851 116 2444 453 . 645 2665 1568 445 880 473 636 250 206 . 428 803 1967 . . 627 1300 129 549 114 Parts 1002 | 8 58 4 156 38 . 41 173 81 17 34 13 24 13 11 . 20 55 112 . . 24 70 5 36 9 Haulers Intercepted 20 | . 1 . 6 . . . 5 6 . . . 1 . . . . . . . . . . 1 . . Recyclers Shooed 11 | . . . . . . . 1 . 5 1 . . . . . . . 2 . . . 2 . . . Parts Field Recycled . | . . . . . . . . . . . . . . . . . . . . . . . . . . Retrieved Matter . | . . . . . . . . . . . . . . . . . . . . . . . . . . Parts Self-Destructed 52 | . . . . . . . . . . . . . 2 9 . 24 . . . . 17 . . . . Prevented 6 | . . . . . . . . . . . . . . . . 2 . . . . 4 . . . . Kills | -11 -10 -10 -9 -9 -9 -8 -8 -8 -8 -6 -6 -6 -6 -6 -6 -5 -5 -4 -4 -4 -3 -3 -3 -2 -1 ------- Run | Scr Mat Min Mat Min Exi Min Mat Sto Rec Fac Gar Fac Low Low Dat Pro Fac Fac Upp War Pro Res Qua Res Acc Combat Hostiles Destroyed 357 | . 19 14 52 13 . 10 53 42 2 16 12 6 8 6 . 17 15 29 . . 18 18 . 6 1 Melee 11 | . . . . . . . 2 . . 1 . 1 . . . . . 2 . . . . . 4 1 Guns 133 | . 6 7 44 9 . 6 18 3 . 1 2 3 2 5 . 9 . 4 . . 3 11 . . . Cannons 101 | . 13 . 1 2 . 4 14 21 2 9 6 2 . . . . 8 12 . . . 5 . 2 . AOE 106 | . . 7 6 2 . . 19 18 . 5 4 . 6 1 . 8 7 7 . . 15 1 . . . Classes Destroyed 20 | 2 6 1 3 . . 2 2 . . 1 . . 3 . . . . . . . . . . . . Worker 45 | . 4 . 5 5 . 3 7 4 . 3 . 1 . . . . 4 5 . . . 2 1 1 . Builder 37 | . . . 2 . . 2 14 1 2 2 . . . . . . 6 8 . . . . . . . Tunneler 10 | 2 . . 2 . . 3 1 . . 1 . . . . . . . . . . . . . . 1 Hauler 20 | . 1 . 6 . . . 5 6 . . . 1 . . . . . . . . . . 1 . . Recycler 29 | 1 . . 2 . . 3 3 1 5 3 . 1 . . . . 3 3 . . . 2 . 2 . Mechanic 3 | . . . . . . . 1 2 . . . . . . . . . . . . . . . . . Operator 8 | . 1 . . . . . 3 1 . . . 1 . . . . 1 1 . . . . . . . Watcher 15 | . 3 . 4 . . . 1 1 . . . . . . . . 3 2 . . . . . 1 . Swarmer 92 | . 6 . 10 11 . 7 4 6 . 4 . 1 3 2 . 12 5 4 . . 10 2 . 5 . Grunt 160 | . 13 2 31 2 . 1 32 23 2 9 9 4 4 2 . 5 2 8 . . 5 6 . . . Brawler 7 | . . . . . . 1 1 . . . 2 . . . . . 2 . . . 1 . . . . Duelist 5 | . . . . . . . 3 . . . . . . . . . 1 . . . 1 . . . . Protector 4 | . . . 1 . . . 2 . . . . . . . . . . . . . 1 . . . . Sentry 42 | . . . 10 . . . 7 12 . 1 . 1 . 1 . . 2 4 . . 1 1 . 1 1 Hunter 15 | . . . . . . 1 4 1 . . 1 . . . . . 1 4 . . . 3 . . . Programmer 21 | . . . . . . . . . . 2 . 1 . 1 . . 2 9 . . . 6 . . . Decomposer 1 | . . . . . . . . . . . . . 1 . . . . . . . . . . . . Tinkerer 1 | . . . . . . . . . . . . . 1 . . . . . . . . . . . . Thief 1 | . . . . . . . . . . . . . 1 . . . . . . . . . . . . Assembled 12 | . . 12 . . . . . . . . . . . . . . . . . . . . . . . Thug 2 | . . . . 2 . . . . . . . . . . . . . . . . . . . . . Mutant 1 | . . . . . . . . . . . . . 1 . . . . . . . . . . . . Best Kill Streak 24 | 2 10 4 8 4 . 6 7 11 3 6 3 2 6 5 . 7 24 17 . . 16 6 1 5 1 Combat Bots Only 16 | . 5 4 5 4 . 5 5 7 2 6 3 2 6 5 . 7 11 6 . . 16 4 . 4 1 Max Kills in Single Turn 4 | 1 2 2 4 4 . 2 3 3 1 2 2 1 2 1 . 4 4 4 . . 4 2 1 1 1 Gunslinging 1 | . . . 1 . . . . . . . . . . . . 1 . . . . . . . . . Exploded 4 | . . 2 3 2 . . 3 2 . 2 2 . 2 1 . 4 3 2 . . 4 1 . . . Melee 1 | . . . . . . . 1 . . 1 . 1 . . . . . 1 . . . . . 1 1 Uniques/NPCs Destroyed . | . . . . . . . . . . . . . . . . . . . . . . . . . . Combat | -11 -10 -10 -9 -9 -9 -8 -8 -8 -8 -6 -6 -6 -6 -6 -6 -5 -5 -4 -4 -4 -3 -3 -3 -2 -1 -------- Run | Scr Mat Min Mat Min Exi Min Mat Sto Rec Fac Gar Fac Low Low Dat Pro Fac Fac Upp War Pro Res Qua Res Acc Damage Taken 28297 | . 556 673 1198 244 . 143 2399 2111 37 1136 1058 651 466 243 . 862 1793 5406 . 51 855 6742 94 1093 486 Core 3272 | . 60 158 183 18 . 20 316 106 . 53 229 65 47 15 . 112 165 799 . 13 138 710 15 50 . Absorbed by Shields 1229 | . . . 71 69 . . 34 . . . 114 . 139 80 . 240 148 91 . . 152 91 . . . Reduced by Siege Mode 269 | . . . . . . . . . . . . . . . . . . 20 . . . 249 . . . Redirected to Shielding 40 | . . . 25 . . 3 12 . . . . . . . . . . . . . . . . . . Regen/Repaired (Parts) 1576 | . . . 139 . . . 317 220 . . . . . . . . 20 116 . . . 85 262 184 233 Core Remaining (%) 55 | 100 . 12 . . . 44 . . 23 . . . . . . 38 83 . . . 17 . 44 96 100 Volleys Fired 1187 | 11 67 41 126 44 . 26 203 121 30 34 41 21 48 9 . 37 60 101 . . 44 96 6 8 13 Largest 4 | 2 2 2 2 2 . 2 2 2 2 3 3 3 3 3 . 3 3 4 . . 2 4 1 1 1 Hottest 268 | 40 80 130 125 126 . 126 140 111 96 149 150 150 131 125 . 148 174 267 . . 268 267 88 120 120 Shots Fired 2064 | 22 130 57 245 88 3 53 315 191 37 66 81 44 63 20 . 79 98 184 . . 46 214 6 9 13 Gun 1038 | 22 63 30 215 80 2 25 140 24 . 4 25 38 55 18 . 69 10 42 . . 19 152 5 . . Cannon 830 | . 64 12 19 7 1 28 153 136 37 49 48 6 . . . . 64 135 . . . 48 1 9 13 Launcher 153 | . 3 15 11 1 . . 22 31 . 13 8 . 8 2 . 6 11 5 . . 11 6 . . . Special 43 | . . . . . . . . . . . . . . . . 4 13 2 . . 16 8 . . . Kinetic 1007 | 22 63 7 . . . . 273 136 37 53 37 32 16 11 . 42 58 119 . . . 95 1 . 5 Thermal 738 | . 64 35 234 87 3 53 20 8 . . 22 6 39 7 . 22 . 6 . . 19 91 5 9 8 Explosive 153 | . 3 15 11 1 . . 22 31 . 13 8 . 8 2 . 6 11 5 . . 11 6 . . . Electromagnetic 123 | . . . . . . . . 16 . . 14 6 . . . 5 16 52 . . . 14 . . . Robot Hit Streak 18 | 6 11 9 17 10 11 7 13 15 10 4 8 14 7 9 . 11 9 18 . . 15 16 . 2 4 Robot Miss Streak 12 | 2 4 12 3 5 2 3 6 5 2 3 4 2 3 1 . 8 3 6 . . 2 11 . 4 . Penetration Max 2 | . . . . . . . 1 1 1 1 . . . . . . 1 1 . . . 2 . . . Secondary Targets 11 | . . . 2 1 . . . . . . . 1 . . . 4 . . . . . 3 . . . Max Gunslinging Chain 1 | . . . 1 1 . . . . . . . 1 . . . 1 . . . . . 1 . . . Shots Hit Robots 1272 | 15 72 33 144 52 1 31 195 108 27 47 38 49 22 12 . 56 65 128 . . 29 127 3 14 4 Core Hits 852 | 5 33 46 86 25 . 20 121 87 9 43 29 15 22 12 . 50 60 72 . . 46 58 2 9 2 Critical Kills 1 | . . . 1 . . . . . . . . . . . . . . . . . . . . . . Critical Parts Destroyed 2 | . . . . . . . . . . . . . . . . . . 1 . . . 1 . . . Critical Strikes 75 | . . . 15 8 . 2 9 10 3 4 1 . 1 2 . 1 1 11 . . . 7 . . . Burn 31 | . . . 14 8 . 2 1 . . . . . 1 2 . 1 . . . . . 2 . . . Meltdown 1 | . . . 1 . . . . . . . . . . . . . . . . . . . . . . Destroy 2 | . . . . . . . . . . . . . . . . . . 1 . . . 1 . . . Blast 39 | . . . . . . . 8 10 3 3 1 . . . . . 1 9 . . . 4 . . . Corrupt 1 | . . . . . . . . . . . . . . . . . . 1 . . . . . . . Sever 1 | . . . . . . . . . . 1 . . . . . . . . . . . . . . . Melee Attacks 231 | . . . 3 . . . 9 6 1 36 . 26 14 . . . 10 30 . . 6 21 23 29 17 Impact 3 | . . . 3 . . . . . . . . . . . . . . . . . . . . . . Slashing 217 | . . . . . . . 9 6 1 36 . 15 14 . . . 10 30 . . 6 21 23 29 17 Piercing . | . . . . . . . . . . . . . . . . . . . . . . . . . . Sneak Attacks 37 | . . . . . . . 1 . . 6 . 9 2 . . . 4 6 . . 1 2 2 2 2 Combat Hostiles 1 | . . . . . . . . . . . . . . . . . . . . . . . . . 1 Follow-up Attacks 2 | . . . . . . . . . . . . . . . . . . . . . . . . 2 . Damage Inflicted 49997 | 153 1192 1059 3859 1286 . 775 6889 5079 848 3216 1866 1270 1645 484 . 1665 3772 6500 . . 2623 4233 244 902 437 Guns 13191 | 153 464 296 2810 1014 . 384 1737 354 . 37 302 695 309 342 . 1103 44 505 . . 208 2434 . . . Cannons 15028 | . 728 123 250 115 . 391 2595 2669 742 942 647 185 . . . . 1394 2859 . . . 1091 . 216 81 Explosions 16614 | . . 640 799 157 . . 2140 2025 . 1452 917 . 910 142 . 562 1938 2098 . . 2315 519 . . . Melee 5123 | . . . . . . . 417 . 96 785 . 390 426 . . . 396 1038 . . 100 189 244 686 356 Ramming 41 | . . . . . . . . 31 10 . . . . . . . . . . . . . . . . Kinetic 16722 | 153 464 35 . . . . 4007 2669 742 979 645 549 123 179 . 653 1365 2258 . . . 1901 . . . Thermal 10109 | . 728 384 3060 1129 . 775 423 148 . 248 140 185 186 163 . 424 . 226 . . 208 1385 . 216 81 Explosive 15992 | . . 640 701 157 . . 2042 2025 . 1204 917 . 910 142 . 562 1938 1920 . . 2315 519 . . . Electromagnetic 2010 | . . . 98 . . . . 206 . . 164 146 . . . 26 73 1058 . . . 239 . . . Impact . | . . . . . . . . . . . . . . . . . . . . . . . . . . Slashing 5123 | . . . . . . . 417 . 96 785 . 390 426 . . . 396 1038 . . 100 189 244 686 356 Piercing . | . . . . . . . . . . . . . . . . . . . . . . . . . . Highest Corruption 34 | . 2 2 13 13 8 8 . . . 1 3 13 13 9 9 9 6 34 34 34 . 16 16 3 . Average Corruption 8 | . 1 2 12 10 8 8 . . . 1 1 7 9 9 9 9 1 15 34 34 . 10 16 3 . Corruption Purged 9 | . . . . 5 . . . . . . . . 4 . . . . . . . . . . . . Corruption Blocked . | . . . . . . . . . . . . . . . . . . . . . . . . . . Effects 535 | . 10 10 154 66 28 30 . . . 3 12 26 48 27 3 34 2 44 . 3 . 29 1 5 . Message Errors 150 | . 2 5 47 17 5 8 . . . 1 4 10 11 6 1 9 1 13 . . . 7 . 3 . Matter Fused 106 | . 1 2 30 16 6 4 . . . . . 6 15 5 2 5 . 6 . . . 8 . . . Heat Flow Errors 60 | . . . 20 3 . 7 . . . . 4 4 1 2 . 6 1 8 . 1 . 2 1 . . Energy Discharges 60 | . 1 . 18 13 6 2 . . . 1 1 2 3 2 . 5 . 4 . . . 2 . . . Parts Rejected 5 | . . . . . . . . . . . 1 . . . . . . 3 . . . 1 . . . Data Loss (minor) 64 | . 3 1 16 7 4 5 . . . . 1 2 5 4 . 5 . 5 . 1 . 4 . 1 . Data Loss (major) 27 | . . 1 6 3 2 . . . . 1 . . 5 4 . 1 . . . 1 . 3 . . . Misfires 25 | . . 1 6 3 3 2 . . . . 1 . 4 . . 1 . 2 . . . 1 . 1 . Alerts 19 | . 2 . 5 2 2 1 . . . . . 2 . 2 . 2 . 1 . . . . . . . Misdirections 1 | . . . 1 . . . . . . . . . . . . . . . . . . . . . . Weapon Failures 18 | . 1 . 5 2 . 1 . . . . . . 4 2 . . . 2 . . . 1 . . . Overload Shots 9 | . . . . . . . . . . . . . . . . . . . . . 8 1 . . . Overflow Damage 1759 | . . 7 38 20 . 18 112 131 67 238 . 65 143 . . 26 216 396 . . 56 140 . 75 11 Projectiles 308 | . . . . 20 . 18 63 14 67 6 . . . . . . . 24 . . . 85 . . 11 Explosions 569 | . . 7 38 . . . 22 117 . 84 . . 79 . . 26 43 95 . . 56 2 . . . Melee 882 | . . . . . . . 27 . . 148 . 65 64 . . . 173 277 . . . 53 . 75 . Knockbacks 83 | . . . . . . . 13 19 6 6 10 . . . . . 6 16 . . . 7 . . . Impact 1 | . . . . . . . . 1 . . . . . . . . . . . . . . . . . Kinetic 76 | . . . . . . . 13 18 6 6 7 . . . . . 5 14 . . . 7 . . . Secondary 6 | . . . . . . . . . . . 3 . . . . . 1 2 . . . . . . . Self-Inflicted Damage 1285 | . . 54 94 . . . 147 238 5 32 . . 253 . . 39 104 262 . . 52 5 . . . Shots 38 | . . 3 3 . . . 6 6 . 1 . . 8 . . 1 3 5 . . 1 1 . . . Rammed 3 | . . . . . . . . 1 1 . . . . . . . . . . . . 1 . . . Targets Rammed 3 | . . . . . . . . 1 1 . . . . . . . . . . . . 1 . . . Kicked . | . . . . . . . . . . . . . . . . . . . . . . . . . . Crushed . | . . . . . . . . . . . . . . . . . . . . . . . . . . Highest Temperature 616 | . 220 258 282 258 . 255 400 339 126 329 462 405 144 247 . 350 616 452 . 372 209 546 45 152 313 Average Temperature 98 | . 96 81 65 42 . 67 97 111 50 127 141 120 54 56 . 121 207 139 . 130 85 120 24 44 93 Received Heat Transfer 5599 | . 201 200 490 40 . . 966 909 18 441 263 129 66 45 . 224 204 717 . . 114 527 . 45 . Effects 51 | . . . . . . 3 6 7 . 1 1 . . . . 2 18 7 . . . 6 . . . Shutdowns 15 | . . . . . . . 2 . . . 1 . . . . 2 4 4 . . . 2 . . . Energy Bleed 6 | . . . . . . . . 2 . 1 . . . . . . 1 1 . . . 1 . . . Interference 16 | . . . . . . 3 3 3 . . . . . . . . 7 . . . . . . . . Matter Decay 8 | . . . . . . . . 1 . . . . . . . . 3 2 . . . 2 . . . Short Circuit 3 | . . . . . . . . 1 . . . . . . . . 2 . . . . . . . . Damage (minor) 3 | . . . . . . . 1 . . . . . . . . . 1 . . . . 1 . . . Siege Activations 3 | . . . . . . . . . . . . . . . . . . 1 . . . 2 . . . Total Turns 74 | . . . . . . . . . . . . . . . . . . 11 . . . 63 . . . Longest Duration 45 | . . . . . . . . . . . . . . . . . . 11 . . . 45 . . . Robots Corrupted 4 | . . . . . . . . . . . . . . . . . . 4 . . . . . . . Combat Hostiles 4 | . . . . . . . . . . . . . . . . . . 4 . . . . . . . Parts Fried 9 | . . . . . . . . . . . . . . . . . . 9 . . . . . . . Impact Corruptions . | . . . . . . . . . . . . . . . . . . . . . . . . . . Robots Melted 2 | . . . 1 . . . . . . . . . . . . . . . . . . 1 . . . Combat Hostiles 2 | . . . 1 . . . . . . . . . . . . . . . . . . 1 . . . Parts Melted 25 | . 4 . 10 3 . 1 1 . . . 1 . . . . . . . . . . 5 . . . Heat Transferred 18428 | . 1480 584 6429 2553 . 1332 642 296 . 200 185 222 333 370 . 666 . 174 . . 335 2368 . 185 74 Parts Sabotaged . | . . . . . . . . . . . . . . . . . . . . . . . . . . Parts Stolen . | . . . . . . . . . . . . . . . . . . . . . . . . . . Parts Stripped . | . . . . . . . . . . . . . . . . . . . . . . . . . . Power Chain Reactions 1 | . . . 1 . . . . . . . . . . . . . . . . . . . . . . Missiles Intercepted . | . . . . . . . . . . . . . . . . . . . . . . . . . . Alert | -11 -10 -10 -9 -9 -9 -8 -8 -8 -8 -6 -6 -6 -6 -6 -6 -5 -5 -4 -4 -4 -3 -3 -3 -2 -1 ------- Run | Scr Mat Min Mat Min Exi Min Mat Sto Rec Fac Gar Fac Low Low Dat Pro Fac Fac Upp War Pro Res Qua Res Acc Peak Influence 1367 | 15 489 470 1367 795 . 273 1175 1190 451 1051 838 457 . . . . 447 824 . . . 378 452 642 604 Initial 958 | . 9 190 117 523 . . 3 495 436 958 333 439 . . . . 132 218 . . . 251 179 254 384 Average 476 | 8 257 317 780 519 . 87 546 867 176 446 605 145 . . . . 159 497 . . . 214 311 428 456 Maximum Alert Level 4 | . 2 2 4 3 . 1 4 4 2 3 3 2 . . . . 2 3 . . . 1 2 2 2 Low Security (%) 24 | 100 25 2 7 . . 94 19 . 65 20 . 76 . . . . 78 . . . . 41 25 . . Level 1 24 | . 58 77 11 22 . 5 17 . 19 24 28 4 . . . . 18 35 . . . 58 47 42 39 Level 2 25 | . 15 19 25 72 . . 28 9 14 40 22 18 . . . . 3 35 . . . . 26 57 60 Level 3 22 | . . . 37 4 . . 32 79 . 14 49 . . . . . . 28 . . . . . . . Level 4 3 | . . . 16 . . . 2 11 . . . . . . . . . . . . . . . . . Level 5 . | . . . . . . . . . . . . . . . . . . . . . . . . . . High Security . | . . . . . . . . . . . . . . . . . . . . . . . . . . Max Security . | . . . . . . . . . . . . . . . . . . . . . . . . . . Sterilizations 2 | . . . 1 . . . 1 . . . . . . . . . . . . . . . . . . Squads Dispatched 90 | . 6 . 12 1 . . 14 10 1 6 . 5 . . . . 6 10 . . 1 13 2 1 2 Investigation 29 | . 6 . 7 1 . . 2 5 . 1 . 1 . . . . 1 . . . . 5 . . . Extermination 12 | . . . . . . . . . . 2 . 1 . . . . 1 4 . . . 2 . 1 1 Reinforcement 36 | . . . 4 . . . 9 3 1 3 . 3 . . . . 3 3 . . . 4 2 . 1 Assault 6 | . . . 1 . . . 3 1 . . . . . . . . . . . . 1 . . . . Garrison 7 | . . . . . . . . 1 . . . . . . . . 1 3 . . . 2 . . . Intercept . | . . . . . . . . . . . . . . . . . . . . . . . . . . Searches Triggered . | . . . . . . . . . . . . . . . . . . . . . . . . . . Data Miner Redirects 3 | . . . . . . . . . . . . . . . . . 1 . . . . 2 . . . Construction Impeded 16 | . . . . . . . 5 1 1 2 . . . . . . 1 3 . . . 2 . . 1 Haulers Reinforced 2 | . . . . . . . . . . 1 . 1 . . . . . . . . . . . . . Active Scanning Responses . | . . . . . . . . . . . . . . . . . . . . . . . . . . Cargo Convoy Interrupts . | . . . . . . . . . . . . . . . . . . . . . . . . . . Stealth | -11 -10 -10 -9 -9 -9 -8 -8 -8 -8 -6 -6 -6 -6 -6 -6 -5 -5 -4 -4 -4 -3 -3 -3 -2 -1 --------- Run | Scr Mat Min Mat Min Exi Min Mat Sto Rec Fac Gar Fac Low Low Dat Pro Fac Fac Upp War Pro Res Qua Res Acc Distress Signals 17 | . 1 . 2 . . . 2 5 . . . 1 . . . . 2 2 . . . 2 . . . Communications Jammed . | . . . . . . . . . . . . . . . . . . . . . . . . . . Distress Signals . | . . . . . . . . . . . . . . . . . . . . . . . . . . Times Spotted 629 | . 29 22 77 13 . 11 77 55 89 19 13 15 8 7 . 27 27 40 . . 18 47 8 17 10 Peak Tracking Total 12 | . 7 5 5 4 . 6 7 6 7 6 5 3 6 5 . 10 9 7 . . 9 9 6 12 10 Tactical Retreats 30 | . 1 4 3 1 . . 1 4 1 . 2 . . . . 2 . 2 . . . 2 2 5 . Traps | -11 -10 -10 -9 -9 -9 -8 -8 -8 -8 -6 -6 -6 -6 -6 -6 -5 -5 -4 -4 -4 -3 -3 -3 -2 -1 ------- Run | Scr Mat Min Mat Min Exi Min Mat Sto Rec Fac Gar Fac Low Low Dat Pro Fac Fac Upp War Pro Res Qua Res Acc Traps Triggered 14 | . . . 1 . . . . . . 1 5 4 . . . . . . . 1 . 2 . . . Indirectly . | . . . . . . . . . . . . . . . . . . . . . . . . . . Trap Hack Attempts . | . . . . . . . . . . . . . . . . . . . . . . . . . . Triggered . | . . . . . . . . . . . . . . . . . . . . . . . . . . Disarmed . | . . . . . . . . . . . . . . . . . . . . . . . . . . Reprogrammed . | . . . . . . . . . . . . . . . . . . . . . . . . . . Reused . | . . . . . . . . . . . . . . . . . . . . . . . . . . Traps Extracted . | . . . . . . . . . . . . . . . . . . . . . . . . . . Installed . | . . . . . . . . . . . . . . . . . . . . . . . . . . Triggered 3 | . . . . . . . . . . . . . . 1 . . . . . . 2 . . . . Machines | -11 -10 -10 -9 -9 -9 -8 -8 -8 -8 -6 -6 -6 -6 -6 -6 -5 -5 -4 -4 -4 -3 -3 -3 -2 -1 ---------- Run | Scr Mat Min Mat Min Exi Min Mat Sto Rec Fac Gar Fac Low Low Dat Pro Fac Fac Upp War Pro Res Qua Res Acc Machines Disabled 62 | . 2 . 4 2 . 2 8 14 . 8 2 . 1 . . 1 3 9 . . . 1 4 . 1 Max in Single Turn 2 | . 1 . 2 1 . 1 2 2 . 2 1 . 1 . . 1 1 2 . . . 1 1 . 1 Garrison Access 4 | . . . . . . . 1 1 . . . 1 . . . . . . . . . 1 . . . Garrison Relay 2 | . . . . . . . . . . . 2 . . . . . . . . . . . . . . Energy Cycler 1 | . . . . . . . . . . . . . . . . . . . . . . . . . 1 Machines Sabotaged . | . . . . . . . . . . . . . . . . . . . . . . . . . . Garrisons Compromised . | . . . . . . . . . . . . . . . . . . . . . . . . . . Overloaded Fab Kills . | . . . . . . . . . . . . . . . . . . . . . . . . . . Hacking | -11 -10 -10 -9 -9 -9 -8 -8 -8 -8 -6 -6 -6 -6 -6 -6 -5 -5 -4 -4 -4 -3 -3 -3 -2 -1 --------- Run | Scr Mat Min Mat Min Exi Min Mat Sto Rec Fac Gar Fac Low Low Dat Pro Fac Fac Upp War Pro Res Qua Res Acc Machines Accessed 105 | . 9 . 13 2 1 . 8 14 10 8 . 4 2 1 4 1 3 3 . . . 10 4 4 4 Terminals 60 | . 7 . 8 . . . 5 10 6 5 . 2 1 . . 1 . 2 . . . 4 4 2 3 Fabricators 5 | . . . . . . . . . . 1 . . . . . . 2 . . . . 2 . . . Repair Stations 5 | . . . 2 . . . 1 1 . . . . . . . . . . . . . 1 . . . Recycling Units 14 | . 2 . 2 . . . 1 2 4 . . 1 . . . . 1 . . . . . . 1 . Scanalyzers 5 | . . . 1 . . . . . . 1 . . . . . . . 1 . . . 2 . . . Garrison Access 7 | . . . . . . . 1 1 . 1 . 1 . . . . . . . . . 1 . 1 1 Total Hacks 360 | . 29 . 36 2 23 . 25 43 35 36 . 9 9 1 29 5 9 20 . . . 25 8 8 8 Successful 212 | . 16 . 16 2 23 . 21 18 22 16 . 3 9 1 29 5 5 11 . . . 8 3 3 1 Failed 146 | . 12 . 19 . . . 4 25 13 20 . 6 . . . . 4 9 . . . 17 5 5 7 Catastrophic 27 | . 2 . 4 . . . 1 1 1 5 . 1 . . . . . 3 . . . 5 . 3 1 Database Lockouts 2 | . 1 . 1 . . . . . . . . . . . . . . . . . . . . . . Manual 137 | . 21 . 22 . 1 . 10 19 16 14 . 7 . . . . 4 13 . . . 5 1 4 . Terminals 208 | . 26 . 23 . . . 13 25 26 31 . 5 8 . . 5 . 19 . . . 8 8 4 7 Fabricators 12 | . . . . . . . . . . 3 . . . . . . 5 . . . . 4 . . . Repair Stations 21 | . . . 5 . . . 6 6 . . . . . . . . . . . . . 4 . . . Recycling Units 38 | . 3 . 6 . . . 5 8 9 . . 2 . . . . 4 . . . . . . 1 . Scanalyzers 12 | . . . 2 . . . . . . 1 . . . . . . . 1 . . . 8 . . . Garrison Access 13 | . . . . . . . 1 4 . 1 . 2 . . . . . . . . . 1 . 3 1 Terminal Hacks 152 | . 13 . 8 2 23 . 9 12 15 12 . . 9 1 29 5 . 9 . . . . 3 1 1 Record 48 | . . . . . 23 . . . . . . . 8 . 11 5 . . . . . . 1 . . Part Schematic 11 | . . . . . . . . . 1 . . . . . 10 . . . . . . . . . . Robot Schematic 5 | . . . . . . . . . . . . . . . 5 . . . . . . . . . . Robot Analysis 15 | . 8 . 2 . . . 3 . 1 1 . . . . . . . . . . . . . . . Prototype ID Bank 18 | . 2 . 1 . . . 1 1 7 1 . . . . 3 . . 1 . . . . . 1 . Open Door 9 | . . . . 2 . . . 5 . . . . 1 1 . . . . . . . . . . . Level Access Points 4 | . . . . . . . 1 . . . . . . . . . . 1 . . . . 1 . 1 Branch Access Points 4 | . . . 1 . . . 1 . . 1 . . . . . . . 1 . . . . . . . Terminal Index 4 | . . . 1 . . . 1 . . 1 . . . . . . . 1 . . . . . . . Recycling Unit Index 4 | . . . 1 . . . 1 . 1 . . . . . . . . 1 . . . . . . . Alert Level 5 | . . . . . . . . 1 2 2 . . . . . . . . . . . . . . . Unreport Threat 14 | . . . 1 . . . 1 4 3 5 . . . . . . . . . . . . . . . Locate Traps 3 | . 1 . 1 . . . . 1 . . . . . . . . . . . . . . . . . Surveillance Status 1 | . . . . . . . . . . . . . . . . . . . . . . . 1 . . Hauler Manifests 3 | . 1 . . . . . . . . 1 . . . . . . . 1 . . . . . . . Registered Components 1 | . . . . . . . . . . . . . . . . . . 1 . . . . . . . Zone Layout 3 | . 1 . . . . . . . . . . . . . . . . 2 . . . . . . . Fabricator Hacks 8 | . . . . . . . . . . 1 . . . . . . 3 . . . . 4 . . . Network Status 2 | . . . . . . . . . . 1 . . . . . . 1 . . . . . . . . Load Schematic 3 | . . . . . . . . . . . . . . . . . 1 . . . . 2 . . . Build 3 | . . . . . . . . . . . . . . . . . 1 . . . . 2 . . . Repair Station Hacks 14 | . . . 2 . . . 6 4 . . . . . . . . . . . . . 2 . . . Scan Component 7 | . . . 1 . . . 3 2 . . . . . . . . . . . . . 1 . . . Repair 7 | . . . 1 . . . 3 2 . . . . . . . . . . . . . 1 . . . Recycling Unit Hacks 8 | . 1 . 1 . . . 1 2 3 . . . . . . . . . . . . . . . . Retrieve Components 8 | . 1 . 1 . . . 1 2 3 . . . . . . . . . . . . . . . . Scanalyzer 4 | . . . 2 . . . . . . 1 . . . . . . . . . . . 1 . . . Insert Component 3 | . . . 1 . . . . . . 1 . . . . . . . . . . . 1 . . . Analyze 1 | . . . 1 . . . . . . . . . . . . . . . . . . . . . . Garrison Access Hacks 5 | . . . . . . . 1 . . 1 . 2 . . . . . . . . . 1 . . . Unlock Access 1 | . . . . . . . . . . 1 . . . . . . . . . . . . . . . Seal Access 3 | . . . . . . . 1 . . . . 1 . . . . . . . . . 1 . . . Coupler Status 1 | . . . . . . . . . . . . 1 . . . . . . . . . . . . . Unauthorized Hacks 21 | . 2 . 3 . . . 4 . 4 1 . 1 . . . . 2 2 . . . . . 2 . Terminals 4 | . . . . . . . . . . . . . . . . . . 2 . . . . . 2 . Track 1 | . . . . . . . . . . . . . . . . . . 1 . . . . . . . Botnet 2 | . . . . . . . . . . . . . . . . . . 1 . . . . . 1 . Operators 1 | . . . . . . . . . . . . . . . . . . . . . . . . 1 . Fabricators 1 | . . . . . . . . . . 1 . . . . . . . . . . . . . . . Fabnet 1 | . . . . . . . . . . 1 . . . . . . . . . . . . . . . Repair Stations . | . . . . . . . . . . . . . . . . . . . . . . . . . . Recycling Units 16 | . 2 . 3 . . . 4 . 4 . . 1 . . . . 2 . . . . . . . . Monitor 1 | . . . . . . . 1 . . . . . . . . . . . . . . . . . . Reject 3 | . . . 1 . . . 1 . . . . . . . . . 1 . . . . . . . . Recyclers 1 | . . . . . . . 1 . . . . . . . . . . . . . . . . . . Mask 4 | . . . 1 . . . 1 . . . . 1 . . . . 1 . . . . . . . . Tunnel 7 | . 2 . 1 . . . . . 4 . . . . . . . . . . . . . . . . Scanalyzers . | . . . . . . . . . . . . . . . . . . . . . . . . . . Garrison Access . | . . . . . . . . . . . . . . . . . . . . . . . . . . Data Cores Recovered 3 | . 1 . . . . . 1 . . . . . . . . . . 1 . . . . . . . Used 1 | . . . . . . . . . . . . . . . . . . 1 . . . . . . . Hacking Detections 75 | . 6 . 11 . . . 6 10 7 5 . 4 . . . . 3 3 . . . 9 3 4 4 Full Trace Events 30 | . 6 . 8 . . . 3 4 2 1 . 1 . . . . 1 . . . . 4 . . . Feedback Events 3 | . 2 . . . . . . . . . . 1 . . . . . . . . . . . . . Corruption 3 | . 2 . . . . . . . . . . 1 . . . . . . . . . . . . . Feedback Blocked . | . . . . . . . . . . . . . . . . . . . . . . . . . . Robot Schematics Acquired 5 | . . . . . . . . . . . . . . . 5 . . . . . . . . . . Robots Built . | . . . . . . . . . . . . . . . . . . . . . . . . . . Authchips . | . . . . . . . . . . . . . . . . . . . . . . . . . . Time . | . . . . . . . . . . . . . . . . . . . . . . . . . . Total Robot Build Rating . | . . . . . . . . . . . . . . . . . . . . . . . . . . Part Schematics Acquired 12 | . . . 1 . . . . . 1 . . . . . 10 . . . . . . . . . . Parts Built 3 | . . . . . . . . . . . . . . . . . 1 . . . . 2 . . . Authchips . | . . . . . . . . . . . . . . . . . . . . . . . . . . Time 380 | . . . . . . . . . . . . . . . . . 76 . . . . 304 . . . Total Part Build Rating 15 | . . . . . . . . . . . . . . . . . 5 . . . . 10 . . . Parts Repaired 6 | . . . 1 . . . 3 1 . . . . . . . . . . . . . 1 . . . Time 256 | . . . 16 . . . 114 76 . . . . . . . . . . . . . 50 . . . Parts Recycled . | . . . . . . . . . . . . . . . . . . . . . . . . . . Recycled Matter . | . . . . . . . . . . . . . . . . . . . . . . . . . . Retrieved Matter . | . . . . . . . . . . . . . . . . . . . . . . . . . . Retrieved Components 51 | . 1 . 10 . . . 9 20 11 . . . . . . . . . . . . . . . . Parts Scanalyzed 1 | . . . 1 . . . . . . . . . . . . . . . . . . . . . . Part Schematics Acquired 1 | . . . 1 . . . . . . . . . . . . . . . . . . . . . . Parts Damaged . | . . . . . . . . . . . . . . . . . . . . . . . . . . Bothacking | -11 -10 -10 -9 -9 -9 -8 -8 -8 -8 -6 -6 -6 -6 -6 -6 -5 -5 -4 -4 -4 -3 -3 -3 -2 -1 ------------ Run | Scr Mat Min Mat Min Exi Min Mat Sto Rec Fac Gar Fac Low Low Dat Pro Fac Fac Upp War Pro Res Qua Res Acc Used RIF Installer 1 | . . . . . . . . . . . 1 . . . . . . . . . . . . . . Robots Hacked 23 | . . . . . . . . . . . . 5 . . . . 6 3 . . 3 6 . . . Non-combat 12 | . . . . . . . . . . . . 1 . . . . 4 2 . . . 5 . . . Combat 11 | . . . . . . . . . . . . 4 . . . . 2 1 . . 3 1 . . . Robot Hacks Applied 28 | . . . . . . . . . . . . 7 . . . . 10 2 . . 3 6 . . . parse_system 3 | . . . . . . . . . . . . . . . . . 3 . . . . . . . . no_distress 3 | . . . . . . . . . . . . 1 . . . . 1 . . . . 1 . . . map_walls 2 | . . . . . . . . . . . . . . . . . . 2 . . . . . . . find_fabricator 1 | . . . . . . . . . . . . . . . . . 1 . . . . . . . . drop_inventory 2 | . . . . . . . . . . . . . . . . . 1 . . . . 1 . . . find_recycling 1 | . . . . . . . . . . . . . . . . . 1 . . . . . . . . ignore_parts 1 | . . . . . . . . . . . . . . . . . 1 . . . . . . . . purge_threat 2 | . . . . . . . . . . . . 2 . . . . . . . . . . . . . amplify_resonance 3 | . . . . . . . . . . . . . . . . . . . . . . 3 . . . overwrite_iff 4 | . . . . . . . . . . . . 1 . . . . 2 . . . 1 . . . . streamctrl_high 1 | . . . . . . . . . . . . 1 . . . . . . . . . . . . . formatsys_high 5 | . . . . . . . . . . . . 2 . . . . . . . . 2 1 . . . Relay Couplers Released 16 | . . . . . . . . 3 . . 10 . . . . . . 3 . . . . . . . Machine Destruction 13 | . . . . . . . . 3 . . 10 . . . . . . . . . . . . . . Programmers 3 | . . . . . . . . . . . . . . . . . . 3 . . . . . . . Attached 9 | . . . . . . . . . . . . 3 . . . . 3 . . . 1 2 . . . Fabnet Peak Effective % 3 | . . . . . . . . . . . . . . . . 3 3 1 1 1 . . . . . Autooverrided 1 | . . . . . . . . . . . . . . . . . . 1 . . . . . . . Robots Rewired 8 | . . . . . 5 . . . . . . . . . . 1 1 . . . 1 . . . . Allies Hacked . | . . . . . . . . . . . . . . . . . . . . . . . . . . Hacks Repelled . | . . . . . . . . . . . . . . . . . . . . . . . . . . Allies | -11 -10 -10 -9 -9 -9 -8 -8 -8 -8 -6 -6 -6 -6 -6 -6 -5 -5 -4 -4 -4 -3 -3 -3 -2 -1 -------- Run | Scr Mat Min Mat Min Exi Min Mat Sto Rec Fac Gar Fac Low Low Dat Pro Fac Fac Upp War Pro Res Qua Res Acc Total Allies 19 | . . . . . 5 . . . . . . 4 . . . 2 2 1 . . 4 1 . . . Largest Group 5 | . . . . . 5 5 . . . . . 3 . . . 1 2 1 . . 3 3 . . . Highest-Rated Group 141 | . . . . . 66 66 . . . . . 87 . . . 96 106 54 . . 90 141 . . . Highest-Rated Ally 96 | . . . . . 21 21 . . . . . 29 . . . 96 64 54 . . 47 64 . . . Total Orders 11 | . . . . 1 . . . 3 . . . 1 . . . . . . . . . 6 . . . STAY 3 | . . . . . . . . . . . . . . . . . . . . . . 3 . . . FOLLOW 3 | . . . . . . . . . . . . . . . . . . . . . . 3 . . . GUARD 1 | . . . . . . . . . . . . 1 . . . . . . . . . . . . . EXPLORE 3 | . . . . . . . . 3 . . . . . . . . . . . . . . . . . RETURN 1 | . . . . 1 . . . . . . . . . . . . . . . . . . . . . Ally Attacks 118 | . . . . . . 21 . . . . . 11 . . . 21 9 1 . . 34 21 . . . Total Damage 2872 | . . . . . . 306 . . . . . 137 . . . 766 329 26 . . 618 690 . . . Kills 19 | . . . . . . 2 . . . . . 1 . . . 7 1 . . . 3 5 . . . Allies Corrupted . | . . . . . . . . . . . . . . . . . . . . . . . . . . Allies Melted . | . . . . . . . . . . . . . . . . . . . . . . . . . . Intel | -11 -10 -10 -9 -9 -9 -8 -8 -8 -8 -6 -6 -6 -6 -6 -6 -5 -5 -4 -4 -4 -3 -3 -3 -2 -1 ------- Run | Scr Mat Min Mat Min Exi Min Mat Sto Rec Fac Gar Fac Low Low Dat Pro Fac Fac Upp War Pro Res Qua Res Acc Robot Analysis Total 15 | . 8 . 2 . . . 3 . 1 1 . . . . . . . . . . . . . . . Derelict Logs Recovered 8 | . . 1 . 3 . . . . . . . . 1 1 . 2 . . . . . . . . . Drone Launches 19 | . . . . 3 . . . 16 . . . . . . . . . . . . . . . . . Drone Recoveries 5 | . . . . 3 . . . 2 . . . . . . . . . . . . . . . . . Decoded 0b10 Intel 197 | . . . . . . . . . . . . . . . . . 70 84 . . . 43 . . . Traps 4 | . . . . . . . . . . . . . . . . . 4 . . . . . . . . Items 190 | . . . . . . . . . . . . . . . . . 63 84 . . . 43 . . . Machines 2 | . . . . . . . . . . . . . . . . . 2 . . . . . . . . Exits 1 | . . . . . . . . . . . . . . . . . 1 . . . . . . . . Exploration | -11 -10 -10 -9 -9 -9 -8 -8 -8 -8 -6 -6 -6 -6 -6 -6 -5 -5 -4 -4 -4 -3 -3 -3 -2 -1 ------------- Run | Scr Mat Min Mat Min Exi Min Mat Sto Rec Fac Gar Fac Low Low Dat Pro Fac Fac Upp War Pro Res Qua Res Acc Turns Passed 31383 | 82 1170 670 4013 1877 735 981 4921 1969 1692 1397 976 1031 1390 796 138 989 876 1436 4 98 1141 2016 371 323 291 Spaces Moved 14943 | 38 622 331 1556 812 471 598 1149 584 760 637 335 552 1044 623 102 648 387 527 3 73 541 897 670 563 420 Core 2 | . . . . . . . . 2 . . . . . . . . . . . . . . . . . Treads 3567 | . 389 152 936 224 . . 92 90 191 235 335 53 . . . . 59 231 . . . 580 . . . Legs 120 | 38 60 . . . . . . . . . . . . . . . . 22 . . . . . . . Wheels 9354 | . 173 179 620 588 471 598 1057 492 569 402 . 499 1044 623 102 648 328 274 3 73 541 70 . . . Hover 1900 | . . . . . . . . . . . . . . . . . . . . . . 247 670 563 420 Flight . | . . . . . . . . . . . . . . . . . . . . . . . . . . Fastest Speed 27 | 120 105 105 120 140 145 145 145 150 135 135 228 145 115 115 130 130 130 130 145 130 130 27 27 32 40 Average Speed 152 | 120 140 166 205 193 145 145 181 238 205 177 228 152 116 120 130 130 153 180 145 134 147 145 33 37 40 Slowest Speed 2200 | 120 160 240 320 560 145 160 400 2200 305 305 228 228 145 130 130 130 305 480 145 145 205 250 36 45 46 Overloaded Moves 165 | . . . . . . . . . . . . . . . . . . . . . . 17 24 124 . Propulsion Burnouts . | . . . . . . . . . . . . . . . . . . . . . . . . . . Robots Hopped . | . . . . . . . . . . . . . . . . . . . . . . . . . . Cave-ins Triggered 1 | . . . . . . . . . . . 1 . . . . . . . . . . . . . . Exploration Rate (%) 55 | 4 97 74 97 99 90 83 77 97 98 18 36 11 95 80 75 85 13 13 2 14 57 28 60 24 12 Regions Visited 25 Branch Regions 14 Pre-discovered Areas 12 | . 2 . 1 1 1 . . . 4 . . . . . 1 2 . . . . . . . . . Known Exits Taken 15 | . . . 1 . . 1 1 . . 1 . 1 1 1 1 1 1 1 . . 1 1 1 1 . Unknown Exits Taken 9 | 1 1 1 . 1 1 . . 1 1 . . . . . . . . . 1 1 . . . . . Scrap Searched 11 | . . . . 1 . 1 . . . . . . 4 1 . 3 . . . . 1 . . . . Spaces Dug 247 | . 17 8 3 . . . 14 14 . 24 21 10 15 15 . . 11 13 . . 8 22 16 17 19 Terrain Destroyed 1740 | . 25 138 79 13 1 12 203 329 17 126 121 10 85 15 . 40 100 167 . . 102 94 16 20 27 Melee 139 | . . . 3 . . . 2 4 . 24 . 10 10 . . . 5 12 . . 5 19 16 16 13 Projectile 334 | . . . . 3 1 12 83 52 17 10 10 . 28 . . . 19 50 . . 9 29 . 4 7 AOE 1267 | . 25 138 76 10 . . 118 273 . 92 111 . 47 15 . 40 76 105 . . 88 46 . . 7 Terrain Rammed . | . . . . . . . . . . . . . . . . . . . . . . . . . . Walls Destroyed . | . . . . . . . . . . . . . . . . . . . . . . . . . . Machines Disabled . | . . . . . . . . . . . . . . . . . . . . . . . . . . Actions | -11 -10 -10 -9 -9 -9 -8 -8 -8 -8 -6 -6 -6 -6 -6 -6 -5 -5 -4 -4 -4 -3 -3 -3 -2 -1 --------- Run | Scr Mat Min Mat Min Exi Min Mat Sto Rec Fac Gar Fac Low Low Dat Pro Fac Fac Upp War Pro Res Qua Res Acc Total 21419 | 53 786 392 2150 1031 523 659 3713 963 853 808 480 683 1149 646 107 738 578 827 3 73 842 1436 788 631 507 Wait 3736 | . 42 8 295 144 . 26 2241 149 22 41 65 31 10 8 . 11 52 32 . . 228 246 43 4 38 Move 14915 | 37 621 330 1555 811 470 597 1148 583 759 636 332 551 1043 622 101 647 386 526 2 72 540 896 669 562 419 Hop . | . . . . . . . . . . . . . . . . . . . . . . . . . . Pick Up 274 | 1 17 2 49 4 . 2 16 12 8 12 11 10 5 1 . 11 13 39 . . 4 42 6 7 2 Fast Attach 203 | 2 4 . 16 8 3 1 25 20 6 11 1 7 7 . 3 7 9 22 . . 2 21 15 6 7 Attach 175 | . 1 2 8 . . . 7 9 2 6 9 2 4 1 . 5 11 42 1 . 9 45 3 5 3 Detach 47 | 1 . . 3 2 1 . 2 6 1 1 . . 3 . . . . 12 . 1 4 9 . 1 . Swap 253 | 1 16 7 30 6 1 4 29 27 10 14 6 20 5 5 . 6 19 13 . . 4 19 3 5 3 Drop 339 | . 18 2 65 12 3 3 33 22 13 17 5 15 10 . 3 14 18 10 . . 1 40 21 7 7 Fire 1187 | 11 67 41 126 44 . 26 203 121 30 34 41 21 48 9 . 37 60 101 . . 44 96 6 8 13 Melee 225 | . . . 3 . . . 9 6 1 36 . 26 14 . . . 10 30 . . 6 21 22 26 15 Ram 2 | . . . . . . . . 1 1 . . . . . . . . . . . . . . . . Kick . | . . . . . . . . . . . . . . . . . . . . . . . . . . Crush 1 | . . . . . . . . . . . . . . . . . . . . . . 1 . . . Escape Stasis 10 | . . . . . . . . . . . 10 . . . . . . . . . . . . . . Rewire 45 | . . . . . 45 . . . . . . . . . . . . . . . . . . . . Trap . | . . . . . . . . . . . . . . . . . . . . . . . . . . Miscellaneous 7 | . . . . . . . . 7 . . . . . . . . . . . . . . . . . Route ------- -11/Scrapyard -10/Materials (discovered 4 exits: *Mat x3 / [*Min]) -10/Mines -9/Materials (discovered 4 exits: *Mat x3 / *Min) -9/Mines (discovered 3 exits: *Mat x2 / *Exi) -9/Exiles (discovered 2 exits: [*Min x2]) -8/Mines (discovered 2 exits: *Mat x2) -8/Materials (discovered 4 exits: *Fac x3 / *Sto) -8/Storage (discovered 2 exits: *Fac / *Rec) -8/Recycling -6/Factory (discovered 3 exits: *Low x2 / Gar) -6/Garrison -6/Factory -6/Lower Caves -6/Lower Caves (discovered 2 exits: *Fac / *Dat) -6/Data Miner -5/Proximity Caves -5/Factory (discovered 2 exits: *Fac / Ext) -4/Factory (discovered 6 exits: Res x4 / *Upp x2) -4/Upper Caves -4/Warlord -3/Proximity Caves -3/Research (discovered 2 exits: *Arm / *Qua) -3/Quarantine -2/Research -1/Access To Fleet Rendezvous History --------- Turn | Location | Event 23 | -11/Scrapyard | Discovered new exit (range 3) 83 | -11/Scrapyard | Entered Materials 294 | -10/Materials | Discovered new exit (range 11) 326 | -10/Materials | Build established: Mutant 416 | -10/Materials | Discovered new exit (range 9) 877 | -10/Materials | Central database locked down 924 | -10/Materials | Discovered new exit (range 16) 1035 | -10/Materials | Discovered new exit (range 16) 1253 | -10/Materials | Entered Mines 1254 | -10/Mines | Assembled infested the area 1259 | -10/Mines | Assisted by a Guerilla fighting off Assembled 1292 | -10/Mines | Core integrity fell below 50% 1494 | -10/Mines | Learned location of 1 exit from Materials 1523 | -10/Mines | Core integrity fell below 20% 1898 | -10/Mines | Discovered new exit (range 11) 1923 | -10/Mines | Entered Materials 1923 | -9/Materials | Evolved 2 slots: Utility x2 1924 | -9/Materials | Identified exit to Materials 2341 | -9/Materials | System corruption reached 10% 2410 | -9/Materials | Identified exit to Mines 2495 | -9/Materials | Discovered exit to Materials (range 3) 2952 | -9/Materials | Build established: Scavenger-Mutant 3039 | -9/Materials | Discovered exit to Materials (range 3) 3561 | -9/Materials | Build established: Mutant 3708 | -9/Materials | Central database locked down 3793 | -9/Materials | Repaired Imp. Treads 4061 | -9/Materials | Build established: Scavenger-Mutant 5523 | -9/Materials | First assault squad dispatched 5598 | -9/Materials | Sterilization system engaged 5598 | -9/Materials | Non-combat units ordered to evacuate 5698 | -9/Materials | Combat units ordered to evacuate 5898 | -9/Materials | Ambient heat levels rising (+10) 5936 | -9/Materials | Entered Mines 5993 | -9/Mines | Met a Derelict bent on vengeance 6005 | -9/Mines | Deemed a non-threat by the Exiles lab entrance 6190 | -9/Mines | Learned Materials trap positions 6241 | -9/Mines | Core integrity fell below 50% 6323 | -9/Mines | Discovered exit to Materials (range 15) 6538 | -9/Mines | Found the Drone Emporium 6585 | -9/Mines | Found Prototype Device 6585 | -9/Mines | Identified Thief Drone Bay 6822 | -9/Mines | Met a Derelict shopkeep closing up shop 6880 | -9/Mines | Build established: Mutant 7113 | -9/Mines | Learned location of 1 exit from Materials 7117 | -9/Mines | Learned location of Storage (-8) 7229 | -9/Mines | Learned Materials stockpile data 7303 | -9/Mines | Discovered exit to Materials (range 6) 7805 | -9/Mines | Discovered new exit (range 5) 7813 | -9/Mines | Entered Exiles 7813 | -9/Exiles | Found Exiles lab destroyed 7906 | -9/Exiles | Discovered new exit (range 14) 8049 | -9/Exiles | Opened EX-Vault 8055 | -9/Exiles | Found Prototype Slashing Weapon 8055 | -9/Exiles | Identified Longsword +1 8468 | -9/Exiles | Learned location of Zion (-7) 8514 | -9/Exiles | Build established: Commander-Mutant 8535 | -9/Exiles | Discovered new exit (range 11) 8548 | -9/Exiles | Entered Mines 8548 | -8/Mines | Accompanied by 5 allies 8622 | -8/Mines | Discovered exit to Materials (range 11) 8928 | -8/Mines | Build established: Mutant 9100 | -8/Mines | Discovered exit to Materials (range 13) 9529 | -8/Mines | Entered Materials 9529 | -8/Materials | Evolved 2 slots: Utility x2 9530 | -8/Materials | Identified exit to Storage 9531 | -8/Materials | Loaded intel: 11 trap records 9847 | -8/Materials | Discovered new exit (range 8) 10229 | -8/Materials | Discovered new exit (range 16) 10270 | -8/Materials | Identified exit to Factory 10595 | -8/Materials | Build established: Hacker-Mutant 10632 | -8/Materials | Repaired Rnf. Ion Engine 10677 | -8/Materials | Repaired Med. Reactive Plating 10716 | -8/Materials | Repaired Hrd. Medium Armor Plating 11529 | -8/Materials | First assault squad dispatched 11601 | -8/Materials | Build established: Mutant 13141 | -8/Materials | Core integrity fell below 50% 14355 | -8/Materials | Sterilization system engaged 14355 | -8/Materials | Non-combat units ordered to evacuate 14450 | -8/Materials | Entered Storage 14502 | -8/Storage | Repaired Hrd. Medium Armor Plating 14540 | -8/Storage | Garrison activated, responded to threat 14679 | -8/Storage | Destroyed 7 combat bots 15456 | -8/Storage | Discovered exit to Factory (range 22) 15899 | -8/Storage | Build established: Scavenger-Mutant 16257 | -8/Storage | Used back door to open Recycling access 16257 | -8/Storage | Discovered new exit (range 4) 16368 | -8/Storage | Lost 3 parts (1n2u) 16419 | -8/Storage | Entered Recycling 16455 | -8/Recycling | Spotter reported a threat 16479 | -8/Recycling | Spotter reported a threat 16523 | -8/Recycling | Spotter reported a threat 16597 | -8/Recycling | Spotter reported a threat 16614 | -8/Recycling | Spotter reported a threat 16616 | -8/Recycling | Build established: Mutant 16650 | -8/Recycling | Spotter reported a threat 16679 | -8/Recycling | Spotter reported a threat 16684 | -8/Recycling | Spotter reported a threat 16732 | -8/Recycling | Spotter reported a threat 16737 | -8/Recycling | Spotter reported a threat 16743 | -8/Recycling | Spotter reported a threat 16835 | -8/Recycling | Spotter reported a threat 16843 | -8/Recycling | Spotter reported a threat 16851 | -8/Recycling | Spotter reported a threat 16851 | -8/Recycling | Spotter reported a threat 16884 | -8/Recycling | Spotter reported a threat 16904 | -8/Recycling | Spotter reported a threat 16904 | -8/Recycling | Spotter reported a threat 16910 | -8/Recycling | Spotter reported a threat 16912 | -8/Recycling | Spotter reported a threat 16935 | -8/Recycling | Spotter reported a threat 16940 | -8/Recycling | Spotter reported a threat 16956 | -8/Recycling | Spotter reported a threat 16971 | -8/Recycling | Spotter reported a threat 16975 | -8/Recycling | Build established: Hacker-Mutant 16978 | -8/Recycling | Spotter reported a threat 16988 | -8/Recycling | Spotter reported a threat 16992 | -8/Recycling | Spotter reported a threat 16993 | -8/Recycling | Spotter reported a threat 17047 | -8/Recycling | Spotter reported a threat 17050 | -8/Recycling | Spotter reported a threat 17069 | -8/Recycling | Spotter reported a threat 17071 | -8/Recycling | Spotter reported a threat 17093 | -8/Recycling | Spotter reported a threat 17100 | -8/Recycling | Spotter reported a threat 17105 | -8/Recycling | Spotter reported a threat 17122 | -8/Recycling | Spotter reported a threat 17124 | -8/Recycling | Spotter reported a threat 17132 | -8/Recycling | Discovered new exit (range 16) 17146 | -8/Recycling | Spotter reported a threat 17153 | -8/Recycling | Spotter reported a threat 17217 | -8/Recycling | Spotter reported a threat 17218 | -8/Recycling | Spotter reported a threat 17226 | -8/Recycling | Spotter reported a threat 17227 | -8/Recycling | Spotter reported a threat 17234 | -8/Recycling | Spotter reported a threat 17257 | -8/Recycling | Spotter reported a threat 17269 | -8/Recycling | Spotter reported a threat 17270 | -8/Recycling | Spotter reported a threat 17271 | -8/Recycling | Spotter reported a threat 17279 | -8/Recycling | Spotter reported a threat 17287 | -8/Recycling | Spotter reported a threat 17310 | -8/Recycling | Spotter reported a threat 17332 | -8/Recycling | Spotter reported a threat 17338 | -8/Recycling | Spotter reported a threat 17351 | -8/Recycling | Spotter reported a threat 17353 | -8/Recycling | Spotter reported a threat 17380 | -8/Recycling | Spotter reported a threat 17389 | -8/Recycling | Spotter reported a threat 17391 | -8/Recycling | Spotter reported a threat 17407 | -8/Recycling | Spotter reported a threat 17422 | -8/Recycling | Spotter reported a threat 17432 | -8/Recycling | Spotter reported a threat 17437 | -8/Recycling | Spotter reported a threat 17456 | -8/Recycling | Spotter reported a threat 17461 | -8/Recycling | Spotter reported a threat 17475 | -8/Recycling | Spotter reported a threat 17485 | -8/Recycling | Spotter reported a threat 17489 | -8/Recycling | Spotter reported a threat 17490 | -8/Recycling | Spotter reported a threat 17509 | -8/Recycling | Spotter reported a threat 17514 | -8/Recycling | Spotter reported a threat 17538 | -8/Recycling | Spotter reported a threat 17542 | -8/Recycling | Spotter reported a threat 17551 | -8/Recycling | Spotter reported a threat 17571 | -8/Recycling | Spotter reported a threat 17592 | -8/Recycling | Spotter reported a threat 17595 | -8/Recycling | Spotter reported a threat 17599 | -8/Recycling | Spotter reported a threat 17601 | -8/Recycling | Spotter reported a threat 17612 | -8/Recycling | Spotter reported a threat 17624 | -8/Recycling | Spotter reported a threat 17630 | -8/Recycling | Spotter reported a threat 17650 | -8/Recycling | Spotter reported a threat 17670 | -8/Recycling | Spotter reported a threat 17674 | -8/Recycling | Spotter reported a threat 17674 | -8/Recycling | Spotter reported a threat 17684 | -8/Recycling | Spotter reported a threat 17687 | -8/Recycling | Spotter reported a threat 17692 | -8/Recycling | Spotter reported a threat 17738 | -8/Recycling | Spotter reported a threat 17749 | -8/Recycling | Spotter reported a threat 17759 | -8/Recycling | Spotter reported a threat 17760 | -8/Recycling | Spotter reported a threat 17773 | -8/Recycling | Spotter reported a threat 17784 | -8/Recycling | Spotter reported a threat 17826 | -8/Recycling | Spotter reported a threat 17839 | -8/Recycling | Spotter reported a threat 17839 | -8/Recycling | Spotter reported a threat 17840 | -8/Recycling | Spotter reported a threat 17956 | -8/Recycling | Spotter reported a threat 17962 | -8/Recycling | Spotter reported a threat 17964 | -8/Recycling | Spotter reported a threat 17978 | -8/Recycling | Spotter reported a threat 17992 | -8/Recycling | Spotter reported a threat 17993 | -8/Recycling | Spotter reported a threat 18009 | -8/Recycling | Spotter reported a threat 18015 | -8/Recycling | Spotter reported a threat 18017 | -8/Recycling | Spotter reported a threat 18025 | -8/Recycling | Spotter reported a threat 18034 | -8/Recycling | Spotter reported a threat 18061 | -8/Recycling | Spotter reported a threat 18067 | -8/Recycling | Spotter reported a threat 18073 | -8/Recycling | Spotter reported a threat 18087 | -8/Recycling | Spotter reported a threat 18111 | -8/Recycling | Entered Factory 18111 | -6/Factory | Evolved 4 slots: Propulsion x2, Utility x1, Weapon x1 18463 | -6/Factory | Identified exit to Lower Caves 19499 | -6/Factory | Identified exit to Garrison 19508 | -6/Factory | Entered Garrison 19658 | -6/Garrison | Triggered checkpoint 19702 | -6/Garrison | Garrison Relay disabled 19794 | -6/Garrison | Spotted B-75 Beast 19911 | -6/Garrison | Lost 4 parts (1u3w) 20190 | -6/Garrison | Crushed by falling debris 20274 | -6/Garrison | Discovered new exit (range 10) 20308 | -6/Garrison | Installed Relay Interface Framework 20345 | -6/Garrison | Triggered checkpoint 20398 | -6/Garrison | Garrison Relay disabled 20484 | -6/Garrison | Entered Factory 20829 | -6/Factory | Discovered exit to Lower Caves (range 5) 20919 | -6/Factory | Build established: Bothacker-Mutant 21201 | -6/Factory | System corruption reached 10% 21252 | -6/Factory | Lost 3 parts (3u) 21515 | -6/Factory | Entered Lower Caves 21690 | -6/Lower Caves | Attracted the attention of an 0b10 base 21731 | -6/Lower Caves | Lost 3 parts (1u2w) 21751 | -6/Lower Caves | Identified exit to Lower Caves 21751 | -6/Lower Caves | Learned location of 2 exits from Lower Caves 21751 | -6/Lower Caves | Learned Extension trap positions 21751 | -6/Lower Caves | Learned Extension stockpile data 21751 | -6/Lower Caves | Learned Extension security intel 21751 | -6/Lower Caves | Learned Armory security intel 21751 | -6/Lower Caves | Learned Research terminal intel 21998 | -6/Lower Caves | Build established: Scavenger-Skirmisher 22228 | -6/Lower Caves | Encountered a Warlord checkpoint 22834 | -6/Lower Caves | Build established: Scavenger-Assassin 22905 | -6/Lower Caves | Entered another Lower Caves area 22906 | -6/Lower Caves | Identified exit to Data Miner 22906 | -6/Lower Caves | Identified exit to Factory 23355 | -6/Lower Caves | Attracted the attention of an 0b10 checkpoint 23616 | -6/Lower Caves | Learned Factory security intel 23650 | -6/Lower Caves | Build established: Scavenger-Tank 23670 | -6/Lower Caves | Spotted B-75 Beast 23701 | -6/Lower Caves | Entered Data Miner 23703 | -6/Data Miner | Discovered new exit (range 6) 23720 | -6/Data Miner | Met Data Miner 23759 | -6/Data Miner | Learned location of Section 7 (-3) 23759 | -6/Data Miner | Acquired the access code to Warlord's prototype stash 23780 | -6/Data Miner | Received God Mode back door access code from Data Miner 23837 | -6/Data Miner | Identified exit to Proximity Caves 23839 | -6/Data Miner | Entered Proximity Caves 23900 | -5/Proximity Caves | Escorted by Enhanced Grunt 23910 | -5/Proximity Caves | Core integrity fell below 50% 24098 | -5/Proximity Caves | Attracted the attention of an 0b10 checkpoint 24120 | -5/Proximity Caves | Learned Factory stockpile data 24211 | -5/Proximity Caves | Build established: Scavenger-Mutant 24471 | -5/Proximity Caves | Attracted the attention of an 0b10 base 24567 | -5/Proximity Caves | Destroyed 7 combat bots 24607 | -5/Proximity Caves | Learned Extension emergency access door positions 24607 | -5/Proximity Caves | Learned Extension garrison access intel 24756 | -5/Proximity Caves | Discovered exit to Factory (range 11) 24828 | -5/Proximity Caves | Entered Factory 24828 | -5/Factory | Accompanied by 1 ally 24828 | -5/Factory | Evolved 2 slots: Power x1, Utility x1 24829 | -5/Factory | Identified exit to Extension 25331 | -5/Factory | Incoming investigation squad redirected 25388 | -5/Factory | Fabricated Lgt. Regenerative Plating (x1) 25513 | -5/Factory | Identified exit to Factory 25616 | -5/Factory | Garrison activated, responded to threat 25698 | -5/Factory | Destroyed 11 combat bots 25704 | -5/Factory | Entered another Factory area 25704 | -4/Factory | Evolved 2 slots: Propulsion x1, Weapon x1 25705 | -4/Factory | Identified exit to Research 25706 | -4/Factory | Lost 8 parts (1p2n2u3w) 26069 | -4/Factory | Garrison activated, responded to threat 26181 | -4/Factory | Lost 4 parts (1p2n1w) 26326 | -4/Factory | Lost 5 parts (2p1u2w) 26492 | -4/Factory | Identified exit to Upper Caves 26643 | -4/Factory | System corruption reached 10% 26699 | -4/Factory | Lost 6 parts (1p1n2u2w) 26729 | -4/Factory | Core integrity fell below 50% 26759 | -4/Factory | Lost 5 parts (1p3n1w) 26783 | -4/Factory | System corruption reached 30% 26813 | -4/Factory | Lost 11 parts (1p4n4u2w) 26986 | -4/Factory | Lost 5 parts (1p1n3u) 27140 | -4/Factory | Entered Upper Caves 27143 | -4/Upper Caves | A Derelict revealed a hidden shortcut to "reach the base" 27144 | -4/Upper Caves | Entered Warlord 27198 | -4/Warlord | System corruption cleaned by Quarantine Array 27224 | -4/Warlord | Discovered new exit (range 15) 27242 | -4/Warlord | Entered Proximity Caves 27537 | -3/Proximity Caves | Build established: Scavenger-Assassin 27848 | -3/Proximity Caves | Attracted the attention of an 0b10 checkpoint 28144 | -3/Proximity Caves | Attracted the attention of an 0b10 outpost 28155 | -3/Proximity Caves | Build established: Scavenger-Mutant 28183 | -3/Proximity Caves | Core integrity fell below 20% 28207 | -3/Proximity Caves | Destroyed 16 combat bots 28217 | -3/Proximity Caves | Lost 5 parts (3n2u) 28269 | -3/Proximity Caves | Discovered exit to Research (range 6) 28383 | -3/Proximity Caves | Entered Research 28383 | -3/Research | Accompanied by 2 allies 28383 | -3/Research | Evolved 2 slots: Propulsion x1, Utility x1 28384 | -3/Research | Loaded intel: 26 terminal locations 28884 | -3/Research | Build established: Scavenger-Assassin 29019 | -3/Research | Repaired Adv. Sensor Array 29233 | -3/Research | Incoming investigation squad redirected 29362 | -3/Research | Fabricated Lgt. Regenerative Plating (x1) 29657 | -3/Research | Lost 9 parts (3p3u3w) 29813 | -3/Research | Incoming investigation squad redirected 29945 | -3/Research | Fabricated Lgt. Regenerative Plating (x1) 30059 | -3/Research | Build established: Scavenger-Skirmisher 30099 | -3/Research | System corruption reached 10% 30132 | -3/Research | Lost 3 parts (1n1u1w) 30256 | -3/Research | Garrison activated, responded to threat 30318 | -3/Research | Core integrity fell below 50% 30331 | -3/Research | Spotted B-86 Titan 30352 | -3/Research | Lost 14 parts (3n5u6w) 30368 | -3/Research | Discovered new exit (range 15) 30381 | -3/Research | Identified exit to Armory 30393 | -3/Research | Discovered new exit (range 16) 30398 | -3/Research | Identified exit to Quarantine 30399 | -3/Research | Entered Quarantine 30435 | -3/Quarantine | Found Alien Artifact 30435 | -3/Quarantine | Identified Core Reset Matrix 30435 | -3/Quarantine | Used Core Reset Matrix 30439 | -3/Quarantine | Detected hypermatrix surge 30439 | -3/Quarantine | Sensed 12 artifacts in vicinity 30450 | -3/Quarantine | Found Core Stripper 30516 | -3/Quarantine | Found Sigix Broadsword 30563 | -3/Quarantine | Identified exit to Research 30587 | -3/Quarantine | Found Subatomic Replicator 30589 | -3/Quarantine | Used Subatomic Replicator to replicate Sigix Broadsword 30705 | -3/Quarantine | Found Transdimensional Reconstructor 30720 | -3/Quarantine | Found Hpw. Transdimensional Reconstructor 30770 | -3/Quarantine | Entered Research 30770 | -2/Research | Evolved 2 slots: Propulsion x1, Utility x1 30916 | -2/Research | Lost 3 parts (2n1w) 30934 | -2/Research | Spotted B-90 Cyclops 31003 | -2/Research | Found Prototype Launcher 31003 | -2/Research | Identified Adv. Micro-nuke Launcher 31078 | -2/Research | Discovered new exit (range 15) 31086 | -2/Research | Identified exit to Access 31093 | -2/Research | Entered Access 31093 | -1/Access | Evolved 2 slots: Power x1, Utility x1 31211 | -1/Access | Energy Cycler disabled 31370 | -1/Access | Identified exit to Surface 31384 | *** | Heading to fleet! Last Messages --------------- Zone 8X. 31356_ Slug penetrates Wall. 31359_ Penetrated by Slug. 31359_ Slug penetrates Wall. 31359_ U-05 Engineer destroyed. 31360_ Acquired 20 matter. 31362_ Penetrated by Slug. 31362_ Slug penetrates H-88 Terminator. 31363_ Cld. Antigrav System destroyed. 31363_ Slug penetrates Wall. 31366_ Penetrated by Slug. 31367_ Slug penetrates Wall. 31370_ Connecting with Terminal... >>Access(Main) Found 1 level access point to Surface: (173,114) Map updated. 31377_ Penetrated by Slug. 31377_ Slug penetrates W-44 Eye. 31382_ The Access Shell folds into the floor. Map ----- +----------------------------------------------------+ | ?????????????????????????????????????????????????? | | ?????????????????????????????????????????????????? | | ?????????????????????????????????????????????????? | | ?????????????????????????????????????????????????? | | ?????????????????????????????????????????????????? | | ????????????????????????????#????????????????????? | | ?????????????????????????????????????????????????? | | ????????????????????????????????????????????"????? | | ????????????????????????????????????????????"""??? | | ????????????????????????????????????????????G????? | | ????????????????????????????????????????????"""??? | | ????????????????????????????????????????????"????? | | ?????????????????????????????????????????????????? | | ??????????????????????????????????????#??????????? | | ?????????????????????????????????????????????????? | | ?????????????????????????????????????????????????? | | ??????????????????????????????#???????????????#??? | | ????????????????????????????????????????????????#? | | ?????????????????????????????????????????????????# | | ?????????????????????????????????????#########???? | | ???????????????????#""""""""""#??????# #???# | | ???????????????????# #??????#! #???? | | ????????????????#??# #??????# #???? | | ???????????????????# #??????# #???? | | ???????????????????# "" #??????# #???? | | ???????????????????# "@ #??????# #???? | | ???????????????????# #??????# #???? | | ???????????????????# #??????# #?#?? | | ???????????????????# #??????# #???? | | ??????????????????## ###????# #???? | | ??????????#???????# #?????# "" #???? | | ??????????????????##"" ###????# """#???? | | ???????????????????#"" #??????# T"#???? | | ???????????????????#"" #??????# """#???? | | ???????????????????#T #??????# "" ##??? | | ???????????????????#"" #????#?# #???? | | ???????????????????#"" #?????## #??#? | | ???????????????????#"" p#######"####/####### | | ??????????# w w R p ^ ! | | ??????????# | | ??????????#########################+####### | | ????????????????????#???????????? ????????# "" | | ??????????????????????????????????????????# """ | | ???????????????????????#????????????"?????# "" | | ????????????????????#??????????????"""????# ""F" | | ????????????????????????????????????"""???# """" | | ????????????????????????????????? ???"????# """ | | ??????????????????????????????????? ??????# | | ?????????????????????????????????????????+ | | ????????????????????#????????????????????## | +----------------------------------------------------+ Best States ------------- Heat Dissipation 95 Coolant Potential 100 Energy Generation 55 Energy Capacity 565 Matter Stores 500 Matter Capacity 500 Sight Range 22 Robot Scan Range 16 Terrain Scan Range 24 Terrain Scan Density 10 Additional Mass Support 9 Armor Coverage 825 Resistance: KI 30 Resistance: TH 30 Resistance: EM 15 Core Shielding 20 Phase Shifting 5 Evasion (%) 59 Target Analysis 8 Recoil Reduction 6 Offensive Hacking 30 Defensive Hacking 30 Relay Coupler Types 2 Relay Coupler Value 52 Item Schematics ----------------- None Robot Schematics ------------------ None Fabricated ------------ Lgt. Regenerative Plating | x1 | -5/Factory Lgt. Regenerative Plating | x1 | -3/Research Lgt. Regenerative Plating | x1 | -3/Research Alien Tech Used ----------------- Core Reset Matrix Sigix Broadsword Subatomic Replicator Achievements -------------- Treasure Hunter Challenges ------------ None Game ------ Seed AssembledRecoilWell Manual? 0 Play Time 06:52:25 Cumulative 637.1 hours Start 2022.04.20 @ 16:57:08 End 2022.04.20 @ 21:29:59 Sessions 9 Manual Loads 0 Difficulty Rogue Special Mode None Game No. 156 Rogue 125 Adventurer 31 Explorer 0 Win Type 2 Total 31 Types 25/0/3/3/0/0/0/0/0 Lore% 77 Gallery% 84 Achievement% 67 Wizard Run 0 Options --------- ASCII 0 Keyboard 0 Movement Arrows Keybinds 0 Fullscreen 1 Font 20/Terminus Map View 66x50 Tactical HUD 1 Map Filters NONE Filters NONE Steam 1 RUN: 3622cc5d-5675-40ff-b25a-9a466a1cd552